Cogmind - Beta 11.1 @@@ ROGUE MODE // 2022.06.11 @ 11:09:29 Player: ChromeKnight Result: Destroyed self via exploding Fusion Modulator Performance ------------- Evolutions (2) 1000 Regions Visited (8) 1600 Robots Destroyed (196) 980 Value Destroyed (6493) 6493 Prototype IDs (7) 140 Alien Tech Used (0) 0 Bonus (2786) 2786 TOTAL SCORE: 12999 Bonus ------- High Alert Combat Kills 878 Follower Combat Kills 508 Entered Garrisons 400 Used RIF Installer 1000 Cogmind --------- Core Integrity 0/550 Matter 300/300 Energy 62/100 System Corruption 0% Temperature Cool (45) Movement Treading (240) Ox1 Location -8/Materials Parts ------- > --- POWER (1) -------- (None) > --- PROPULSION (2) --- Light Treads > --- UTILITY (6) ------ High-capacity Storage Unit Hacking Suite System Shield Relay Coupler [NC] (31) Relay Coupler [Specialist] (21) > --- WEAPON (2) ------- (None) > --- INVENTORY (20) --- Improved Cesium-ion Thruster Improved Cesium-ion Thruster Improved Cesium-ion Thruster Improved Cesium-ion Thruster Coolant Injector Coolant Injector Improved Sensor Array Improved Signal Interpreter Reactive Plating System Shield Relay Coupler [NC] (24) Relay Coupler [NC] (31) Relay Coupler [NC] (29) Relay Coupler [NC] (24) Relay Coupler [Brawler] (23) Relay Coupler [Sentry] (22) Relay Coupler [Hunter] (17) Relay Coupler [Hunter] (16) Drone Bay (2/2) Datajack Peak State ------------ > --- POWER ------------ Deuterium Engine > --- PROPULSION ------- Medium Treads Medium Treads > --- UTILITY ---------- Coolant Injector Coolant Injector High-capacity Storage Unit Improved Power Shielding Improved Utility Shielding Relay Coupler [Specialist] > --- WEAPON ----------- High-powered Shotgun Enhanced Autogun > --- INVENTORY -------- Medium Treads Improved Cesium-ion Thruster Improved Cesium-ion Thruster Improved Cesium-ion Thruster Improved Cesium-ion Thruster Improved Sensor Array Improved Signal Interpreter Hardened Light Armor Plating Improved Light Armor Plating Reactive Plating Hacking Suite System Shield Relay Coupler [Swarmer] Relay Coupler [Cutter] Relay Coupler [Brawler] Relay Coupler [Hunter] Drone Bay Autogun Datajack Datajack [Rating: 44] Favorites ----------- Power Deuterium Engine Engine Deuterium Engine Propulsion Armored Treads Treads Armored Treads Wheel Wheel Flight Unit Flight Unit Utility High-capacity Storage Unit Device Disposable Heat Sink Storage High-capacity Storage Unit Processor Advanced Targeting Computer Hackware Relay Coupler [Specialist] Protection Improved Power Shielding Weapon Flak Cannon Energy Gun Spread Laser Energy Cannon Light EM Pulse Cannon Ballistic Gun Heavy Assault Rifle Ballistic Cannon Flak Cannon Launcher Grenade Launcher Special Melee Weapon Datajack Build | -11 -10 -10 -9 -9 -9 -8 -8 -8 ------- Run | Scr Mat Min Mat Sto Gar Mat Gar Mat Slots Evolved 4 | . . . 2 . . 2 . . Power . | . . . . . . . . . Propulsion . | . . . . . . . . . Utility 4 | . . . 2 . . 2 . . Weapon . | . . . . . . . . . Parts Attached 134 | 6 11 4 36 7 10 38 14 8 Power 12 | 1 1 1 4 2 . 2 1 . Engine 12 | 1 1 1 4 2 . 2 1 . Core . | . . . . . . . . . Reactor . | . . . . . . . . . Propulsion 28 | 2 2 1 10 . 2 7 4 . Treads 22 | 2 2 1 6 . 2 6 3 . Leg . | . . . . . . . . . Wheel 4 | . . . 4 . . . . . Hover . | . . . . . . . . . Flight 2 | . . . . . . 1 1 . Utility 50 | 1 4 . 14 2 6 16 3 4 Device 11 | . 1 . 3 1 3 3 . . Storage 4 | 1 2 . . . 1 . . . Processor 5 | . 1 . 2 . 1 1 . . Hackware 9 | . . . . . 1 3 1 4 Protection 21 | . . . 9 1 . 9 2 . Artifact . | . . . . . . . . . Weapon 44 | 2 4 2 8 3 2 13 6 4 Energy Gun 8 | 1 . . 6 . . . . 1 Energy Cannon 6 | . 2 1 2 1 . . . . Ballistic Gun 15 | 1 . . . 1 . 6 6 1 Ballistic Cannon 8 | . 2 . . 1 2 3 . . Launcher 2 | . . 1 . . . 1 . . Special Weapon . | . . . . . . . . . Impact Weapon . | . . . . . . . . . Slashing Weapon . | . . . . . . . . . Piercing Weapon . | . . . . . . . . . Special Melee Weapon 5 | . . . . . . 3 . 2 Unidentified Prototypes 7 | . . . 2 1 . 3 . 1 Parts Lost 40 | . . 3 6 3 3 8 10 7 Power 5 | . . . 2 1 . . 1 1 Propulsion 9 | . . 1 2 . 1 2 2 1 Utility 11 | . . . 2 1 1 4 2 1 Weapon 15 | . . 2 . 1 1 2 5 4 Highest Loss Streak 3 | . . 3 3 1 3 2 3 3 To Critical Strikes . | . . . . . . . . . Average Slot Usage (%) 93 | . 99 99 93 98 97 94 83 92 Engine 10 | . 14 14 10 10 11 9 7 8 Treads 20 | . 28 28 21 22 21 17 17 17 Device 10 | . 9 14 10 14 15 9 10 2 Storage 10 | . 14 14 11 11 11 9 9 9 Processor 3 | . 3 . 7 11 9 . . . Hackware 3 | . . . . . 6 4 9 35 Protection 13 | . . . 8 7 . 26 11 3 Energy Gun 3 | . . . 13 7 . . . 1 Energy Cannon 5 | . 19 15 8 6 9 . . . Ballistic Gun 5 | . . . . 3 . 6 17 10 Ballistic Cannon 4 | . 6 . . 3 12 8 . . Naked Turns . | . . . . . . . . . Heaviest Build 78 | 14 54 54 62 66 66 78 67 62 Greatest Support 56 | 40 46 46 46 40 40 56 56 40 Greatest Overweight (x) 17 | . 1 1 17 1 1 3 12 1 Average Overweight (x) . | . . 1 1 1 1 1 . 1 Largest Inventory Capacity 20 | 8 20 20 20 20 20 20 20 20 Average Capacity 19 | 6 11 20 20 20 20 20 20 20 Most Carried 20 | 1 10 13 20 20 20 20 20 20 Average Carried 17 | . 7 8 17 19 19 19 17 18 Final Capacity 20 | 8 20 20 20 20 20 20 20 20 Final Carried 20 | 1 9 13 20 19 18 20 20 20 Class Distribution -------------------- 52% | Bothacker-Mutant 44% | Mutant Dominant Class ---------------- Mutant | -10/Materials Mutant | -10/Mines Mutant | -9/Materials Mutant | -9/Storage Bothacker-Mutant | -9/Garrison Bothacker-Mutant | -8/Materials Bothacker-Mutant | -8/Garrison Bothacker-Mutant | -8/Materials Resources | -11 -10 -10 -9 -9 -9 -8 -8 -8 ----------- Run | Scr Mat Min Mat Sto Gar Mat Gar Mat Matter Collected 4116 | 248 281 170 415 252 360 1691 629 70 Remotely . | . . . . . . . . . Salvage Created 5765 | . 299 202 1399 859 534 1655 636 181 Parts 315 | . 17 8 74 49 37 80 40 10 Haulers Intercepted 10 | . 2 . 4 2 . 2 . . Recyclers Shooed 6 | . . . 2 . . 4 . . Parts Field Recycled . | . . . . . . . . . Retrieved Matter . | . . . . . . . . . Parts Self-Destructed . | . . . . . . . . . Prevented . | . . . . . . . . . Kills | -11 -10 -10 -9 -9 -9 -8 -8 -8 ------- Run | Scr Mat Min Mat Sto Gar Mat Gar Mat Combat Hostiles Destroyed 160 | . 9 21 31 15 17 40 23 4 Guns 62 | . . . 30 . . 7 23 2 Cannons 71 | . 8 3 . 15 17 28 . . AOE 26 | . 1 18 . . . 5 . 2 Classes Destroyed 14 | . 5 3 2 2 1 1 . . Worker 13 | . . 1 6 2 . 4 . . Builder 4 | . . . 2 1 . . . 1 Tunneler 1 | . . . . . . 1 . . Hauler 10 | . 2 . 4 2 . 2 . . Recycler 10 | . . 1 4 2 . 3 . . Operator 5 | . 1 . 2 1 . . . 1 Watcher 12 | . 2 . 4 1 . 5 . . Swarmer 41 | . 3 . 11 4 3 6 14 . Grunt 60 | . 6 2 13 4 5 24 4 2 Brawler 1 | . . . . 1 . . . . Duelist 4 | . . . . 1 2 1 . . Sentry 33 | . . . 7 5 5 9 5 2 Hunter 2 | . . . . . 2 . . . Assembled 19 | . . 19 . . . . . . Best Kill Streak 21 | . 3 21 10 8 4 6 4 5 Combat Bots Only 19 | . 3 19 9 4 4 6 4 3 Max Kills in Single Turn 6 | . 1 6 2 3 1 2 2 4 Gunslinging 1 | . . . 1 . . . 1 . Exploded 5 | . 1 5 . . . 2 . 2 Melee . | . . . . . . . . . Uniques/NPCs Destroyed . | . . . . . . . . . Combat | -11 -10 -10 -9 -9 -9 -8 -8 -8 -------- Run | Scr Mat Min Mat Sto Gar Mat Gar Mat Damage Taken 8414 | . 316 578 1136 530 776 3014 1503 561 Core 1017 | . 63 124 186 22 48 304 140 130 Absorbed by Shields 336 | . . . . . . . 336 . Redirected to Shielding 291 | . . . . . . 212 79 . Core Remaining (%) 53 | 100 . 25 . . 36 . . . Volleys Fired 457 | . 33 18 90 32 30 142 90 22 Largest 2 | . 2 2 2 2 2 2 2 1 Hottest 144 | . 112 112 130 144 144 88 50 50 Shots Fired 851 | . 63 24 182 65 61 276 158 22 Gun 482 | . . . 163 28 . 111 158 22 Cannon 351 | . 63 12 19 37 61 159 . . Launcher 18 | . . 12 . . . 6 . . Special . | . . . . . . . . . Kinetic 534 | . 37 . . 28 31 270 158 10 Thermal 230 | . . . 163 37 30 . . . Explosive 18 | . . 12 . . . 6 . . Electromagnetic 69 | . 26 12 19 . . . . 12 Robot Hit Streak 20 | . 10 4 20 9 13 17 15 4 Robot Miss Streak 12 | . 4 2 5 8 5 12 4 3 Penetration Max . | . . . . . . . . . Secondary Targets 9 | . . . 2 . . 1 6 . Max Gunslinging Chain 1 | . . . 1 . . 1 1 . Shots Hit Robots 638 | . 40 13 157 33 37 233 105 20 Core Hits 569 | . 16 44 204 31 36 188 40 10 Critical Kills 1 | . . . . . . 1 . . Critical Parts Destroyed 3 | . . . . . . . 2 1 Critical Strikes 8 | . 2 . 2 . . 1 2 1 Burn 2 | . . . 2 . . . . . Destroy 4 | . . . . . . 1 2 1 Blast 2 | . 2 . . . . . . . Melee Attacks 12 | . . . . . . 9 . 3 Impact . | . . . . . . . . . Slashing . | . . . . . . . . . Piercing . | . . . . . . . . . Sneak Attacks 8 | . . . . . . 6 . 2 Combat Hostiles . | . . . . . . . . . Follow-up Attacks . | . . . . . . . . . Damage Inflicted 13315 | . 956 1179 2491 1078 1101 3963 1558 989 Guns 5308 | . . . 2182 125 . 1181 1556 264 Cannons 5577 | . 934 184 309 953 1101 2096 . . Explosions 2424 | . 22 995 . . . 682 . 725 Melee . | . . . . . . . . . Ramming 6 | . . . . . . 4 2 . Kinetic 5876 | . 578 . . 99 321 3277 1556 45 Thermal 4792 | . 22 104 2182 979 780 . . 725 Explosive 1499 | . . 891 . . . 608 . . Electromagnetic 1142 | . 356 184 309 . . 74 . 219 Impact . | . . . . . . . . . Slashing . | . . . . . . . . . Piercing . | . . . . . . . . . Highest Corruption 4 | . 3 3 1 4 4 . . . Average Corruption 2 | . 2 3 1 3 4 . . . Corruption Purged . | . . . . . . . . . Corruption Blocked . | . . . . . . . . . Effects 148 | . 16 19 31 35 47 . . . Message Errors 41 | . 5 4 9 10 13 . . . Matter Fused 40 | . 3 2 8 12 15 . . . Heat Flow Errors 18 | . 3 5 3 5 2 . . . Energy Discharges 20 | . 3 5 2 6 4 . . . Data Loss (minor) 14 | . 1 . 5 1 7 . . . Data Loss (major) 3 | . . . 1 . 2 . . . Misfires 7 | . . 1 2 1 3 . . . Alerts 5 | . 1 2 1 . 1 . . . Overload Shots . | . . . . . . . . . Overflow Damage 295 | . 10 18 22 3 . 20 . 222 Projectiles 44 | . 10 3 22 3 . 6 . . Explosions 251 | . . 15 . . . 14 . 222 Melee . | . . . . . . . . . Knockbacks 92 | . 7 . . 1 10 74 . . Impact . | . . . . . . . . . Kinetic 85 | . 6 . . 1 8 70 . . Secondary 7 | . 1 . . . 2 4 . . Self-Inflicted Damage 225 | . 8 23 . . . 54 . 140 Shots 7 | . 1 1 . . . 3 . 2 Rammed 3 | . . . 1 . . 1 1 . Targets Rammed 3 | . . . 1 . . 1 1 . Kicked . | . . . . . . . . . Crushed . | . . . . . . . . . Highest Temperature 377 | . 204 197 211 212 377 199 36 39 Average Temperature 71 | . 77 87 81 76 66 66 10 18 Received Heat Transfer 3031 | . 111 73 396 93 162 1440 477 279 Effects 1 | . 1 . . . . . . . Interference 1 | . 1 . . . . . . . Siege Activations . | . . . . . . . . . Robots Corrupted 1 | . . . 1 . . . . . Combat Hostiles . | . . . . . . . . . Parts Fried 15 | . 4 . 8 . . . . 3 Impact Corruptions . | . . . . . . . . . Robots Melted 1 | . . . 1 . . . . . Combat Hostiles 1 | . . . 1 . . . . . Parts Melted 4 | . . . 2 1 . . . 1 Heat Transferred 5733 | . . 200 3002 1170 911 . . 450 Parts Sabotaged . | . . . . . . . . . Parts Stolen . | . . . . . . . . . Parts Stripped . | . . . . . . . . . Power Chain Reactions 2 | . 1 . . . . . . 1 Missiles Intercepted . | . . . . . . . . . Alert | -11 -10 -10 -9 -9 -9 -8 -8 -8 ------- Run | Scr Mat Min Mat Sto Gar Mat Gar Mat Peak Influence 1159 | . 181 104 859 494 881 631 1159 589 Initial 564 | . . 5 . 167 266 429 410 564 Average 411 | . 38 28 194 245 674 420 901 564 Maximum Alert Level 4 | . . . 3 2 3 2 4 2 Low Security (%) 30 | 100 100 100 67 44 . . . . Level 1 17 | . . . 5 30 8 38 . . Level 2 34 | . . . 20 24 36 61 23 100 Level 3 12 | . . . 6 . 55 . 42 . Level 4 5 | . . . . . . . 34 . Level 5 . | . . . . . . . . . High Security . | . . . . . . . . . Max Security . | . . . . . . . . . Squads Dispatched 25 | . 1 . 4 4 . 13 . 3 Investigation 5 | . 1 . 1 . . 3 . . Extermination . | . . . . . . . . . Reinforcement 8 | . . . 2 1 . 2 . 3 Assault 3 | . . . 1 . . 2 . . Garrison 9 | . . . . 3 . 6 . . Intercept . | . . . . . . . . . Searches Triggered . | . . . . . . . . . Construction Impeded . | . . . . . . . . . Haulers Reinforced . | . . . . . . . . . Active Scanning Responses . | . . . . . . . . . Cargo Convoy Interrupts . | . . . . . . . . . Stealth | -11 -10 -10 -9 -9 -9 -8 -8 -8 --------- Run | Scr Mat Min Mat Sto Gar Mat Gar Mat Distress Signals 6 | . . . 3 . . 2 . 1 Communications Jammed . | . . . . . . . . . Distress Signals . | . . . . . . . . . Times Spotted 239 | . 21 23 50 23 18 66 29 9 Peak Tracking Total 10 | . 3 10 8 4 7 8 5 5 Tactical Retreats 21 | . . . 7 1 4 5 3 1 Traps | -11 -10 -10 -9 -9 -9 -8 -8 -8 ------- Run | Scr Mat Min Mat Sto Gar Mat Gar Mat Traps Triggered 16 | . 4 . 6 2 1 1 2 . Indirectly . | . . . . . . . . . Trap Hack Attempts . | . . . . . . . . . Triggered . | . . . . . . . . . Disarmed 4 | . . . . 4 . . . . Reprogrammed . | . . . . . . . . . Reused . | . . . . . . . . . Traps Extracted . | . . . . . . . . . Installed . | . . . . . . . . . Triggered . | . . . . . . . . . Most Traps Carried 5 | . . 5 5 5 3 . . . Machines | -11 -10 -10 -9 -9 -9 -8 -8 -8 ---------- Run | Scr Mat Min Mat Sto Gar Mat Gar Mat Machines Disabled 13 | . 2 1 . . 2 2 4 2 Max in Single Turn 2 | . 1 1 . . 1 2 1 2 Garrison Relay 6 | . . . . . 2 . 4 . Machines Sabotaged . | . . . . . . . . . Garrisons Compromised . | . . . . . . . . . Overloaded Fab Kills . | . . . . . . . . . Hacking | -11 -10 -10 -9 -9 -9 -8 -8 -8 --------- Run | Scr Mat Min Mat Sto Gar Mat Gar Mat Machines Accessed 34 | . 9 . 10 6 . 8 . 1 Terminals 30 | . 8 . 9 5 . 7 . 1 Fabricators . | . . . . . . . . . Repair Stations 1 | . 1 . . . . . . . Recycling Units . | . . . . . . . . . Scanalyzers 1 | . . . 1 . . . . . Garrison Access 2 | . . . . 1 . 1 . . Total Hacks 95 | . 22 . 25 16 . 27 . 5 Successful 59 | . 17 . 18 8 . 14 . 2 Failed 36 | . 5 . 7 8 . 13 . 3 Catastrophic 2 | . . . . . . 2 . . Database Lockouts . | . . . . . . . . . Manual 78 | . 16 . 23 15 . 19 . 5 Terminals 83 | . 18 . 23 13 . 24 . 5 Fabricators . | . . . . . . . . . Repair Stations 4 | . 4 . . . . . . . Recycling Units . | . . . . . . . . . Scanalyzers 2 | . . . 2 . . . . . Garrison Access 6 | . . . . 3 . 3 . . Terminal Hacks 11 | . 2 . 4 1 . 4 . . Robot Analysis 2 | . 1 . . . . 1 . . Branch Access Points 1 | . . . 1 . . . . . Unreport Threat 5 | . . . 3 . . 2 . . Disarm Traps 1 | . . . . 1 . . . . Transport Status 1 | . 1 . . . . . . . Recall Assault 1 | . . . . . . 1 . . Fabricator Hacks . | . . . . . . . . . Repair Station Hacks 2 | . 2 . . . . . . . Scan Component 1 | . 1 . . . . . . . Repair 1 | . 1 . . . . . . . Recycling Unit Hacks . | . . . . . . . . . Scanalyzer 2 | . . . 2 . . . . . Insert Component 1 | . . . 1 . . . . . Analyze 1 | . . . 1 . . . . . Garrison Access Hacks 2 | . . . . 1 . 1 . . Unlock Access 2 | . . . . 1 . 1 . . Unauthorized Hacks 42 | . 13 . 12 6 . 9 . 2 Terminals 41 | . 13 . 12 6 . 8 . 2 Track 2 | . . . 1 . . 1 . . Assimilate 5 | . 4 . 1 . . . . . Botnet 29 | . 8 . 9 5 . 6 . 1 Operators 5 | . 1 . 1 1 . 1 . 1 Fabricators . | . . . . . . . . . Repair Stations . | . . . . . . . . . Recycling Units . | . . . . . . . . . Scanalyzers . | . . . . . . . . . Garrison Access 1 | . . . . . . 1 . . Reprogram 1 | . . . . . . 1 . . Data Cores Recovered . | . . . . . . . . . Used . | . . . . . . . . . Hacking Detections 25 | . 8 . 5 4 . 7 . 1 Full Trace Events 7 | . 2 . 1 1 . 3 . . Feedback Events . | . . . . . . . . . Feedback Blocked . | . . . . . . . . . Robot Schematics Acquired . | . . . . . . . . . Robots Built . | . . . . . . . . . Authchips . | . . . . . . . . . Time . | . . . . . . . . . Total Robot Build Rating . | . . . . . . . . . Part Schematics Acquired 1 | . . . 1 . . . . . Parts Built . | . . . . . . . . . Authchips . | . . . . . . . . . Time . | . . . . . . . . . Total Part Build Rating . | . . . . . . . . . Parts Repaired 1 | . 1 . . . . . . . Time 36 | . 36 . . . . . . . Parts Recycled . | . . . . . . . . . Recycled Matter . | . . . . . . . . . Retrieved Matter . | . . . . . . . . . Retrieved Components . | . . . . . . . . . Parts Scanalyzed 1 | . . . 1 . . . . . Part Schematics Acquired 1 | . . . 1 . . . . . Parts Damaged . | . . . . . . . . . Bothacking | -11 -10 -10 -9 -9 -9 -8 -8 -8 ------------ Run | Scr Mat Min Mat Sto Gar Mat Gar Mat Used RIF Installer 2 | . . . . . 1 . 1 . Structural Interface 1 | . . . . . . . 1 . Robots Hacked 8 | . . . . . . 7 . 1 Non-combat 4 | . . . . . . 4 . . Combat 4 | . . . . . . 3 . 1 Robot Hacks Applied 8 | . . . . . . 7 . 1 purge_threat 1 | . . . . . . 1 . . disable_weapons 1 | . . . . . . 1 . . formatsys_low 3 | . . . . . . 3 . . formatsys_high 3 | . . . . . . 2 . 1 Relay Couplers Released 24 | . . . . . 8 . 16 . Machine Destruction 24 | . . . . . 8 . 16 . Attached 7 | . . . . . 1 3 1 2 Fabnet Peak Effective % . | . . . . . . . . . Robots Rewired . | . . . . . . . . . Allies Hacked . | . . . . . . . . . Hacks Repelled . | . . . . . . . . . Allies | -11 -10 -10 -9 -9 -9 -8 -8 -8 -------- Run | Scr Mat Min Mat Sto Gar Mat Gar Mat Total Allies 9 | . 1 . . 1 . 6 . 1 Largest Group 6 | . 1 1 1 2 1 6 4 3 Highest-Rated Group 110 | . 10 10 10 110 10 74 62 38 Highest-Rated Ally 100 | . 10 10 10 100 10 24 24 15 Total Orders 38 | . 2 2 5 2 4 12 10 1 STAY 21 | . 1 1 4 1 2 8 3 1 FOLLOW 15 | . 1 1 1 1 2 4 5 . DROP 1 | . . . . . . . 1 . PICKUP 1 | . . . . . . . 1 . Ally Attacks 42 | . . . . 17 . 6 11 8 Total Damage 1061 | . . . . 458 . 128 314 161 Kills 17 | . . . . 8 . 3 4 2 Allies Corrupted . | . . . . . . . . . Allies Melted 1 | . . . . . . . . 1 Intel | -11 -10 -10 -9 -9 -9 -8 -8 -8 ------- Run | Scr Mat Min Mat Sto Gar Mat Gar Mat Robot Analysis Total 2 | . 1 . . . . 1 . . Derelict Logs Recovered 1 | . . 1 . . . . . . Drone Launches . | . . . . . . . . . Drone Recoveries . | . . . . . . . . . Exploration | -11 -10 -10 -9 -9 -9 -8 -8 -8 ------------- Run | Scr Mat Min Mat Sto Gar Mat Gar Mat Turns Passed 21910 | 68 1726 1228 4153 1837 1794 7225 3597 282 Spaces Moved 7212 | 39 809 487 1004 655 583 2245 1302 88 Core 4 | 3 . . 1 . . . . . Treads 7128 | 36 809 487 924 655 583 2245 1301 88 Legs . | . . . . . . . . . Wheels 79 | . . . 79 . . . . . Hover . | . . . . . . . . . Flight 1 | . . . . . . . 1 . Fastest Speed 50 | 50 160 240 110 250 250 232 160 240 Average Speed 233 | 151 176 240 234 250 250 244 235 240 Slowest Speed 1020 | 160 240 240 900 250 250 385 1020 240 Overloaded Moves . | . . . . . . . . . Propulsion Burnouts . | . . . . . . . . . Robots Hopped . | . . . . . . . . . Cave-ins Triggered . | . . . . . . . . . Exploration Rate (%) 64 | 4 97 92 75 66 50 91 98 10 Regions Visited 8 Branch Regions 2 Pre-discovered Areas 1 | . . 1 . . . . . . Known Exits Taken 3 | . . . 1 1 . 1 . . Unknown Exits Taken 3 | 1 1 1 . . . . . . Scrap Searched 1 | . . 1 . . . . . . Spaces Dug . | . . . . . . . . . Terrain Destroyed 76 | . 1 52 . . . 23 . . Melee . | . . . . . . . . . Projectile 1 | . 1 . . . . . . . AOE 75 | . . 52 . . . 23 . . Terrain Rammed . | . . . . . . . . . Walls Destroyed . | . . . . . . . . . Machines Disabled . | . . . . . . . . . Actions | -11 -10 -10 -9 -9 -9 -8 -8 -8 --------- Run | Scr Mat Min Mat Sto Gar Mat Gar Mat Total 11441 | 45 1051 524 2617 779 851 3729 1708 137 Wait 3403 | . 172 10 1442 78 209 1256 225 11 Move 7202 | 38 808 486 1003 654 581 2244 1300 88 Hop . | . . . . . . . . . Pick Up 100 | 1 13 6 19 2 7 12 37 3 Fast Attach 72 | 6 6 . 25 4 5 17 8 1 Attach 22 | . . 3 5 1 2 4 3 4 Detach 3 | . . . 2 . . . . 1 Swap 40 | . 5 1 6 2 3 17 3 3 Drop 115 | . 14 . 24 6 10 24 37 . Fire 457 | . 33 18 90 32 30 142 90 22 Melee 12 | . . . . . . 9 . 3 Ram . | . . . . . . . . . Kick . | . . . . . . . . . Crush 3 | . . . 1 . . 1 1 . Escape Stasis 6 | . . . . . 2 . 4 . Rewire 6 | . . . . . 2 3 . 1 Trap . | . . . . . . . . . Miscellaneous . | . . . . . . . . . Route ------- -11/Scrapyard -10/Materials (discovered 4 exits: *Mat x3 / [*Min]) -10/Mines -9/Materials (discovered 4 exits: *Mat / *Min x2 / *Sto) -9/Storage -9/Garrison -8/Materials (discovered 4 exits: [*Fac x3] / Gar) -8/Garrison (discovered 3 exits: *Mat x3) -8/Materials History --------- Turn | Location | Event 6 | -11/Scrapyard | Discovered new exit (range 16) 69 | -11/Scrapyard | Entered Materials 254 | -10/Materials | Discovered new exit (range 12) 310 | -10/Materials | Build established: Mutant 517 | -10/Materials | Discovered new exit (range 6) 980 | -10/Materials | Discovered new exit (range 13) 1268 | -10/Materials | Discovered new exit (range 15) 1563 | -10/Materials | Repaired Corrupted Datajack 1795 | -10/Materials | Entered Mines 1795 | -10/Mines | Accompanied by 1 ally 1865 | -10/Mines | Discovered new exit (range 8) 1907 | -10/Mines | Assembled infested the area 1912 | -10/Mines | Assisted by a Guerilla fighting off Assembled 1916 | -10/Mines | Core integrity fell below 50% 1963 | -10/Mines | Lost 3 parts (1n2w) 1978 | -10/Mines | Destroyed 19 combat bots 2654 | -10/Mines | Found a hidden stash of uninstalled traps 3023 | -10/Mines | Entered Materials 3023 | -9/Materials | Accompanied by 1 ally 3023 | -9/Materials | Evolved 2 slots: Utility x2 3271 | -9/Materials | Identified exit to Mines 3271 | -9/Materials | Identified exit to Storage 5343 | -9/Materials | Discovered new exit (range 9) 5885 | -9/Materials | Destroyed 9 combat bots 6088 | -9/Materials | Lost 3 parts (1p2u) 6223 | -9/Materials | First assault squad dispatched 7176 | -9/Materials | Entered Storage 7176 | -9/Storage | Accompanied by 1 ally 7214 | -9/Storage | Met 01-MTF 8157 | -9/Storage | Core integrity fell below 50% 8456 | -9/Storage | Garrison activated, responded to threat 8612 | -9/Storage | Identified exit to Garrison 9013 | -9/Storage | Entered Garrison 9013 | -9/Garrison | Accompanied by 1 ally 9234 | -9/Garrison | Triggered checkpoint 9565 | -9/Garrison | Discovered new exit (range 13) 9610 | -9/Garrison | Installed Relay Interface Framework 9712 | -9/Garrison | Triggered checkpoint 9817 | -9/Garrison | Garrison Relay disabled 9952 | -9/Garrison | Triggered checkpoint 10082 | -9/Garrison | Triggered checkpoint 10135 | -9/Garrison | Build established: Bothacker-Mutant 10178 | -9/Garrison | Garrison Relay disabled 10550 | -9/Garrison | Lost 3 parts (1n1u1w) 10807 | -9/Garrison | Entered Materials 10807 | -8/Materials | Accompanied by 1 ally 10807 | -8/Materials | Evolved 2 slots: Utility x2 12320 | -8/Materials | Discovered new exit (range 16) 12652 | -8/Materials | Discovered new exit (range 5) 14407 | -8/Materials | First assault squad dispatched 15099 | -8/Materials | Identified exit to Garrison 15566 | -8/Materials | Discovered new exit (range 4) 15707 | -8/Materials | Garrison activated, responded to threat 17359 | -8/Materials | Core integrity fell below 50% 18032 | -8/Materials | Entered Garrison 18032 | -8/Garrison | Accompanied by 4 allies 18044 | -8/Garrison | Expanded RIF knowledge: Structural Interface 18118 | -8/Garrison | Triggered checkpoint 18166 | -8/Garrison | Garrison Relay disabled 18462 | -8/Garrison | Triggered checkpoint 18579 | -8/Garrison | Build established: Commander-Mutant 18924 | -8/Garrison | Triggered checkpoint 19021 | -8/Garrison | Build established: Bothacker-Mutant 19104 | -8/Garrison | Triggered checkpoint 19170 | -8/Garrison | Lost 3 parts (1u2w) 19226 | -8/Garrison | Garrison Relay disabled 19285 | -8/Garrison | Discovered new exit (range 13) 19739 | -8/Garrison | Discovered new exit (range 10) 19830 | -8/Garrison | Triggered checkpoint 19892 | -8/Garrison | Triggered checkpoint 19926 | -8/Garrison | Garrison Relay disabled 19969 | -8/Garrison | Discovered new exit (range 9) 20046 | -8/Garrison | Triggered checkpoint 20071 | -8/Garrison | Core integrity fell below 20% 20384 | -8/Garrison | Triggered checkpoint 20530 | -8/Garrison | Garrison Relay disabled 21629 | -8/Garrison | Entered Materials 21629 | -8/Materials | Accompanied by 3 allies 21893 | -8/Materials | Lost 3 parts (1u2w) 21911 | -8/Materials | Destroyed self via exploding Fusion Modulator Last Messages --------------- 21896_ Acquired Relay Coupler [Hunter]. 21898_ Lgt. Treads destroyed. 21907_ Imp. Ion Engine destroyed. 21909_ Imp. Heat Sink fried. 21909_ Lgt. Nuclear Core fried. 21909_ G-47 Trooper destroyed. 21911_ Chain reaction triggered in Lgt. Nuclear Core. 21911_ Fusion Modulator explodes. 21911_ Destroyed System Restoration Module. 21911_ Destroyed Unknown Leg. 21911_ G-47 Trooper destroyed. 21911_ Destroyed Imp. Hover Unit. 21911_ Destroyed Terrain Scanner. 21911_ Destroyed Welding Torch. 21911_ Wheel melted. 21911_ U-05 Engineer destroyed. 21911_ Hvy. EM Shotgun destroyed. 21911_ Destroyed Hvy. EM Shotgun. 21911_ O-24 Administrator destroyed. 21911_ Y-45 Defender destroyed. Map ----- +----------------------------------------------------+ | | | | | | | | | | | | | | | | | | | | | | | ?????????????????????????????????????????????????? | | ?????????????????????????????????????????????????? | | ???????????????????????????????????????########### | | ???????????????????????????????????????# """ # | | ????????????????????????#########??????# "T" # | | ????????????????????????# !!##?????#[ # | | ??????????????????#####?# !#????## """ # | | ??????????????????#"""#?# !#????# """ / | | ?????????????????##"T"### !#?????# // """ # | | ?????????????????# % !#?????#%// # | | ?????????????????# = !!##?????#/// # | | ?????????????????# #################+### | | ?????????????????# =%[u | | ?????????????????# %=####+##### | | ?????????????????# @% #? ??# ####### | | ?????????????????# # #?# #?????? | | ?????????????????# % # #?# #?????? | | ?????????????????# w # #?# #?????? | | ?????????????????# % # #?# #?????? | | ?????????????????# =[! # #?# #?????? | | ?????????????????# % ##+#####?# #?????? | | ???????????????? r ????????# #?????? | | ??????????????? [[ ??????? #?????? | | ?????????????? [[ !%* ?????? #?????? | | ??????????????#############+#####????? #?????? | | ?????????????????????????? !?????????? #?????? | | ?????????????????????????? ?????????? #?????? | | ?????????????????????????? ?????????? ??????? | | ?????????????????????????? ????????????###??????? | | ????????????????????????? ?????????????????????? | | ?????????????????????????? ?????????????????????? | | ??????????????????????????##?????????????????????? | | ?????????????????????????????????????????????????? | | ?????????????????????????????????????????????????? | | ?????????????????????????????????????????????????? | | ?????????????????????????????????????????????????? | | ?????????????????????????????????????????????????? | | ?????????????????????????????????????????????????? | | ?????????????????????????????????????????????????? | +----------------------------------------------------+ Best States ------------- Heat Dissipation 56 Coolant Potential 130 Energy Generation 14 Energy Capacity 275 Matter Stores 300 Matter Capacity 300 Sight Range 18 Terrain Scan Density 85 Armor Coverage 450 Resistance: KI 20 Power Shielding 66 Propulsion Shielding 66 Utility Shielding 66 Evasion (%) 40 Targeting Accuracy 8 Recoil Reduction 2 Offensive Hacking 10 Defensive Hacking 10 Relay Coupler Types 3 Relay Coupler Value 57 Item Schematics ----------------- Hacking Suite | -9/Materials | Scanalyzed Robot Schematics ------------------ None Fabricated ------------ Nothing Alien Tech Used ----------------- None Achievements -------------- None Challenges ------------ None Game ------ Seed NovaRecyclingChainsword Manual? 0 Play Time 01:07:07 Cumulative 321.3 hours Start 2022.06.11 @ 09:15:47 End 2022.06.11 @ 11:09:29 Sessions 1 Manual Loads 0 Difficulty Rogue Special Mode None Game No. 561 Rogue 406 Adventurer 148 Explorer 7 Win Type - Total 11 Types 9/0/1/1/0/0/0/0/0 Lore% 74 Gallery% 87 Achievement% 67 Wizard Run 0 Options --------- ASCII 0 Keyboard 0 Movement Numpad Keybinds 0 Fullscreen 1 Font 18/SmallcapsGlow Map View 76x50 Tactical HUD 1 Map Filters NONE Filters NONE Steam 1 RUN: 62fe3d17-2b38-49d1-a236-3956e2864acb